Cogmind - Beta 13 @@@ ROGUE MODE // 2024.04.06 @ 21:59:38 Player: Gertrude Result: Destroyed by H-61 Shepherd with Heavy Assault Cannon Performance ------------- Evolutions (2) 1000 Regions Visited (3) 600 Robots Destroyed (75) 375 Value Destroyed (2259) 2259 Prototype IDs (7) 140 Alien Tech Used (0) 0 Bonus (2) 2 TOTAL SCORE: 4376 Bonus ------- High Alert Combat Kills 2 Cogmind --------- Core Integrity 0/550 Matter 295/300 Energy 29/100 System Corruption 0% Temperature Hot (250) Movement Core (50) Location -8/Materials Parts ------- > --- POWER (1) -------- (None) > --- PROPULSION (4) --- (None) > --- UTILITY (4) ------ Signal Interpreter Transport Network Coupler Advanced Targeting Computer > --- WEAPON (2) ------- Heavy Particle Gun > --- INVENTORY (5) ---- Light Nuclear Core Light Nuclear Core Flight Unit Improved Utility Shielding Peak State ------------ > --- POWER ------------ Light Nuclear Core > --- PROPULSION ------- Carbon-fiber Leg Carbon-fiber Leg Titanium Leg VSS Leg > --- UTILITY ---------- Small Storage Unit Signal Interpreter Transport Network Coupler Shield Generator > --- WEAPON ----------- Heavy Particle Gun Heavy Laser > --- INVENTORY -------- Improved Aluminum Leg Flight Unit Improved Utility Shielding Heavy EM Shotgun [Rating: 29] Favorites ----------- Power Ion Engine Engine Ion Engine Power Core Light Nuclear Core Propulsion Carbon-fiber Leg Leg Carbon-fiber Leg Wheel Compact Wheel Hover Unit Hover Unit Flight Unit Flight Unit Utility Small Storage Unit Device Shield Generator Storage Small Storage Unit Processor Targeting Computer Hackware Hacking Suite Weapon Improved Light Cannon Energy Gun Heavy Particle Gun Energy Cannon Heavy Particle Cannon Ballistic Gun Improved Assault Rifle Ballistic Cannon Improved Light Cannon Build | -11 -10 -9 -8 ------- Run | Yrd Mat Mat Mat Slots Evolved 4 | . . 2 2 Power . | . . . . Propulsion 2 | . . 1 1 Utility 2 | . . 1 1 Weapon . | . . . . Parts Attached 65 | 6 9 16 34 Power 10 | 1 1 2 6 Engine 8 | 1 1 2 4 Core 2 | . . . 2 Reactor . | . . . . Propulsion 16 | 2 1 4 9 Treads . | . . . . Leg 9 | . . . 9 Wheel 3 | 2 . 1 . Hover 1 | . 1 . . Flight 3 | . . 3 . Utility 11 | 1 3 2 5 Device 3 | . 1 . 2 Storage 2 | 1 1 . . Processor 5 | . 1 2 2 Hackware 1 | . . . 1 Protection . | . . . . Artifact . | . . . . Weapon 28 | 2 4 8 14 Energy Gun 8 | 1 . 2 5 Energy Cannon 3 | . . . 3 Ballistic Gun 4 | 1 . . 3 Ballistic Cannon 13 | . 4 6 3 Launcher . | . . . . Special Weapon . | . . . . Impact Weapon . | . . . . Slashing Weapon . | . . . . Piercing Weapon . | . . . . Special Melee Weapon . | . . . . Unidentified Prototypes 5 | . . 2 3 Parts Lost 29 | . 3 4 22 Power 5 | . 1 . 4 Propulsion 12 | . 1 3 8 Utility 5 | . . . 5 Weapon 7 | . 1 1 5 Highest Loss Streak 8 | . 2 2 8 To Critical Strikes . | . . . . Average Slot Usage (%) 89 | . 94 84 88 Engine 8 | . 13 11 5 Core 1 | . . . 2 Leg 18 | . . . 32 Wheel 6 | . 18 8 . Hover 2 | . 7 3 . Flight 2 | . . 12 . Device 1 | . . . 2 Storage 10 | . 14 11 8 Processor 17 | . 12 19 18 Energy Gun 5 | . . 8 6 Energy Cannon 2 | . . . 3 Ballistic Gun 1 | . . . 3 Ballistic Cannon 10 | . 26 10 2 Naked Turns . | . . . . Heaviest Build 26 | 14 18 18 26 Greatest Support 62 | 32 32 16 62 Greatest Overweight (x) 5 | . 1 5 4 Average Overweight (x) . | . . . . Largest Inventory Capacity 8 | 8 8 8 8 Average Capacity 7 | 6 7 8 7 Most Carried 8 | 3 7 8 8 Average Carried 4 | . 4 5 4 Final Capacity 8 | 8 8 8 5 Final Carried 6 | . 5 6 4 Class Distribution -------------------- 70% | Mutant 29% | Scavenger-Mutant Dominant Class ---------------- Mutant | -10/Materials Scavenger-Mutant | -9/Materials Mutant | -8/Materials Resources | -11 -10 -9 -8 ----------- Run | Yrd Mat Mat Mat Matter Collected 1464 | 190 375 294 605 Remotely . | . . . . Salvage Created 2553 | . 417 565 1571 Parts 163 | . 33 45 85 Haulers Intercepted 7 | . 1 3 3 Recyclers Shooed 1 | . . . 1 Parts Field Recycled . | . . . . Retrieved Matter . | . . . . Parts Self-Destructed . | . . . . Prevented . | . . . . Kills | -11 -10 -9 -8 ------- Run | Yrd Mat Mat Mat Combat Hostiles Destroyed 57 | . 13 15 29 Guns 19 | . . 4 15 Cannons 34 | . 13 7 14 AOE 4 | . . 4 . Classes Destroyed 10 | . 3 4 3 Builder 1 | . . 1 . Hauler 7 | . 1 3 3 Recycler 1 | . . . 1 Operator 1 | . . . 1 Watcher 8 | . 3 2 3 Swarmer 13 | . . 7 6 Grunt 34 | . 13 6 15 Duelist 2 | . . 1 1 Sentry 7 | . . 1 6 Hunter 1 | . . . 1 Best Kill Streak 6 | . 6 6 4 Combat Bots Only 6 | . 5 6 3 Max Kills in Single Turn 3 | . 2 3 2 Gunslinging 1 | . . 1 . Exploded 2 | . . 2 . Melee . | . . . . Uniques/NPCs Destroyed . | . . . . Combat | -11 -10 -9 -8 -------- Run | Yrd Mat Mat Mat Hostile Shots Fired 340 | . 44 52 244 Missed 102 | . 10 18 74 Damage Taken 3860 | . 437 534 2889 Core 868 | . 61 246 561 Absorbed by Shields 120 | . . . 120 Regen/Repaired (Parts) 95 | . . . 95 Core Remaining (%) 71 | 100 75 38 . Volleys Fired 181 | . 30 36 115 Largest 2 | . 2 2 2 Hottest 150 | . 78 90 150 Shots Fired 344 | . 58 72 214 Gun 155 | . . 24 131 Cannon 189 | . 58 48 83 Launcher . | . . . . Special . | . . . . Kinetic 193 | . 58 48 87 Thermal 116 | . . . 116 Explosive . | . . . . Electromagnetic 35 | . . 24 11 Robot Hit Streak 21 | . 10 13 21 Robot Miss Streak 4 | . 2 4 2 Penetration Max . | . . . . Secondary Targets 4 | . . 1 3 Max Gunslinging Chain 1 | . . 1 1 Shots Hit Robots 241 | . 40 46 155 Core Hits 112 | . 19 23 70 Critical Kills . | . . . . Critical Parts Destroyed . | . . . . Critical Strikes 5 | . 2 1 2 Burn 1 | . . . 1 Blast 4 | . 2 1 1 Melee Attacks . | . . . . Impact . | . . . . Slashing . | . . . . Piercing . | . . . . Sneak Attacks . | . . . . Combat Hostiles . | . . . . Follow-up Attacks . | . . . . Damage Inflicted 5100 | . 903 1151 3046 Guns 2079 | . . 361 1718 Cannons 2718 | . 903 548 1267 Explosions 261 | . . 240 21 Melee . | . . . . Ramming 42 | . . 2 40 Kinetic 2623 | . 903 548 1172 Thermal 1879 | . . 240 1639 Explosive . | . . . . Electromagnetic 556 | . . 361 195 Impact . | . . . . Slashing . | . . . . Piercing . | . . . . Highest Corruption 2 | . 2 . . Average Corruption 2 | . 2 . . Corruption Purged . | . . . . Corruption Blocked . | . . . . Effects 7 | . 7 . . Message Errors 1 | . 1 . . Heat Flow Errors 1 | . 1 . . Energy Discharges 2 | . 2 . . Data Loss (minor) 3 | . 3 . . Overload Shots . | . . . . Overflow Damage 28 | . . 16 12 Projectiles 27 | . . 15 12 Explosions 1 | . . 1 . Melee . | . . . . Knockbacks 19 | . 10 4 5 Impact . | . . . . Kinetic 17 | . 9 4 4 Secondary 2 | . 1 . 1 Self-Inflicted Damage 234 | . . 197 37 Shots 5 | . . 4 1 Rammed 1 | . . 1 . Targets Rammed 7 | . . 1 6 Kicked 6 | . . . 6 Crushed . | . . . . Highest Temperature 447 | . 236 126 447 Average Temperature 92 | . 68 41 117 Received Heat Transfer 1464 | . 261 45 1158 Effects 9 | . . . 9 Shutdowns 2 | . . . 2 Energy Bleed 2 | . . . 2 Interference 4 | . . . 4 Short Circuit 1 | . . . 1 Siege Activations . | . . . . Robots Corrupted . | . . . . Combat Hostiles . | . . . . Parts Fried 2 | . . 2 . Impact Corruptions . | . . . . Robots Melted . | . . . . Combat Hostiles . | . . . . Parts Melted 10 | . . . 10 Heat Transferred 3260 | . . 250 3010 Parts Sabotaged . | . . . . Parts Stolen . | . . . . Parts Stripped . | . . . . Power Chain Reactions 4 | . . 3 1 Alert | -11 -10 -9 -8 ------- Run | Yrd Mat Mat Mat Peak Influence 419 | . 304 419 416 Initial 50 | . . 50 27 Average 175 | . 97 197 210 Maximum Alert Level 2 | . 1 2 2 Low Security (%) 59 | 100 87 46 49 Level 1 39 | . 12 50 49 Level 2 1 | . . 3 1 Level 3 . | . . . . Level 4 . | . . . . Level 5 . | . . . . High Security . | . . . . Max Security . | . . . . Squads Dispatched 10 | . 3 2 5 Investigation 3 | . 3 . . Extermination . | . . . . Reinforcement 7 | . . 2 5 Assault . | . . . . Garrison . | . . . . Intercept . | . . . . Searches Triggered . | . . . . Construction Impeded . | . . . . Haulers Reinforced . | . . . . Active Scanning Responses . | . . . . Cargo Convoy Interrupts . | . . . . Stealth | -11 -10 -9 -8 --------- Run | Yrd Mat Mat Mat Distress Signals 8 | . 1 2 5 Communications Jammed . | . . . . Distress Signals . | . . . . Times Spotted 85 | . 16 21 48 Peak Tracking Total 6 | . 6 6 4 Tactical Retreats 3 | . . 1 2 Traps | -11 -10 -9 -8 ------- Run | Yrd Mat Mat Mat Traps Triggered 4 | . 3 . 1 Indirectly . | . . . . Trap Hack Attempts . | . . . . Triggered . | . . . . Disarmed . | . . . . Reprogrammed . | . . . . Reused . | . . . . Traps Extracted . | . . . . Installed . | . . . . Triggered . | . . . . Machines | -11 -10 -9 -8 ---------- Run | Yrd Mat Mat Mat Machines Disabled 6 | . . 1 5 Max in Single Turn 1 | . . 1 1 Garrison Access 1 | . . . 1 Machines Repaired . | . . . . Machines Dismantled . | . . . . Machines Sabotaged . | . . . . Overloaded Fab Kills . | . . . . Hacking | -11 -10 -9 -8 --------- Run | Yrd Mat Mat Mat Machines Accessed 17 | . 6 5 6 Terminals 15 | . 6 5 4 Fabricators . | . . . . Repair Stations 1 | . . . 1 Recycling Units . | . . . . Scanalyzers . | . . . . Garrison Access 1 | . . . 1 Total Hacks 48 | . 14 18 16 Successful 22 | . 8 6 8 Failed 26 | . 6 12 8 Catastrophic 9 | . 2 5 2 Database Lockouts . | . . . . Manual 32 | . 14 12 6 Terminals 44 | . 14 18 12 Fabricators . | . . . . Repair Stations 2 | . . . 2 Recycling Units . | . . . . Scanalyzers . | . . . . Garrison Access 2 | . . . 2 Terminal Hacks 19 | . 8 6 5 Prototype ID Bank 1 | . . . 1 Alert Level 5 | . 2 2 1 Unreport Threat 4 | . 1 2 1 Transport Status 2 | . 1 . 1 Recall Investigation 2 | . 2 . . Hauler Manifests 2 | . . 1 1 Zone Layout 3 | . 2 1 . Fabricator Hacks . | . . . . Repair Station Hacks 2 | . . . 2 Scan Component 1 | . . . 1 Repair 1 | . . . 1 Recycling Unit Hacks . | . . . . Scanalyzer . | . . . . Garrison Access Hacks 1 | . . . 1 Seal Access 1 | . . . 1 Unauthorized Hacks . | . . . . Terminals . | . . . . Fabricators . | . . . . Repair Stations . | . . . . Recycling Units . | . . . . Scanalyzers . | . . . . Garrison Access . | . . . . Data Cores Recovered 1 | . . . 1 Used . | . . . . Hacking Detections 15 | . 5 5 5 Full Trace Events 3 | . 3 . . Feedback Events . | . . . . Feedback Blocked . | . . . . Robot Schematics Acquired . | . . . . Robots Built . | . . . . Authchips . | . . . . Time . | . . . . Total Robot Build Rating . | . . . . Part Schematics Acquired . | . . . . Parts Built . | . . . . Authchips . | . . . . Time . | . . . . Total Part Build Rating . | . . . . Parts Repaired 1 | . . . 1 Time 38 | . . . 38 Parts Recycled . | . . . . Recycled Matter . | . . . . Retrieved Matter . | . . . . Retrieved Components . | . . . . Parts Scanalyzed . | . . . . Part Schematics Acquired . | . . . . Parts Damaged . | . . . . Bothacking | -11 -10 -9 -8 ------------ Run | Yrd Mat Mat Mat Used RIF Installer . | . . . . Robots Hacked . | . . . . Non-combat . | . . . . Combat . | . . . . Robot Hacks Applied . | . . . . Relay Couplers Released . | . . . . Fabnet Peak Effective % . | . . . . Robots Rewired . | . . . . Allies Hacked . | . . . . Hacks Repelled . | . . . . Allies | -11 -10 -9 -8 -------- Run | Yrd Mat Mat Mat Total Allies . | . . . . Largest Group . | . . . . Highest-Rated Group . | . . . . Highest-Rated Ally . | . . . . Total Orders . | . . . . Ally Attacks . | . . . . Total Damage . | . . . . Kills . | . . . . Allies Corrupted . | . . . . Allies Melted . | . . . . Intel | -11 -10 -9 -8 ------- Run | Yrd Mat Mat Mat Robot Analysis Total . | . . . . Derelict Logs Recovered . | . . . . Drone Launches . | . . . . Drone Recoveries . | . . . . Exploration | -11 -10 -9 -8 ------------- Run | Yrd Mat Mat Mat Turns Passed 2544 | 56 621 481 1386 Spaces Moved 1438 | 39 374 333 692 Core 9 | 3 . 1 5 Treads . | . . . . Legs 660 | . . . 660 Wheels 685 | 36 374 248 27 Hover . | . . . . Flight 84 | . . 84 . Fastest Speed 34 | 50 100 34 95 Average Speed 109 | 96 111 89 118 Slowest Speed 360 | 100 115 360 250 Overloaded Moves . | . . . . Propulsion Burnouts . | . . . . Robots Hopped . | . . . . Cave-ins Triggered . | . . . . Exploration Rate (%) 45 | 3 70 36 73 Regions Visited 3 Branch Regions . Pre-discovered Areas . | . . . . Known Exits Taken 1 | . . 1 . Unknown Exits Taken 2 | 1 1 . . Scrap Searched . | . . . . Spaces Dug . | . . . . Terrain Destroyed 47 | . 1 32 14 Melee . | . . . . Projectile 15 | . 1 5 9 AOE 32 | . . 27 5 Terrain Rammed . | . . . . Walls Destroyed . | . . . . Machines Disabled . | . . . . Actions | -11 -10 -9 -8 --------- Run | Yrd Mat Mat Mat Total 2065 | 57 518 448 1042 Wait 299 | 7 95 40 157 Move 1435 | 38 373 332 692 Hop . | . . . . Pick Up 56 | 6 11 10 29 Fast Attach . | . . . . Attach 48 | 6 4 13 25 Detach 7 | . . 7 . Swap 17 | . 5 3 9 Drop 15 | . . 6 9 Fire 181 | . 30 36 115 Melee . | . . . . Ram 1 | . . 1 . Kick 6 | . . . 6 Crush . | . . . . Escape Stasis . | . . . . Rewire . | . . . . Trap . | . . . . Miscellaneous . | . . . . Route ------- -11/Scrapyard -10/Materials (discovered 3 exits: *Mat x2 / [*Min]) -9/Materials (discovered 2 exits: *Mat / [*Sto]) -8/Materials (discovered 2 exits: [*Fac x2]) History --------- Turn | Location | Event 11 | -11/Scrapyard | Discovered new exit (range 15) 57 | -11/Scrapyard | Entered Materials 314 | -10/Materials | Build established: Mutant 383 | -10/Materials | Discovered new exit (range 5) 456 | -10/Materials | Discovered new exit (range 9) 661 | -10/Materials | Discovered new exit (range 16) 678 | -10/Materials | Entered another Materials area 678 | -9/Materials | Evolved 2 slots: Propulsion x1, Utility x1 994 | -9/Materials | Core integrity fell below 50% 1100 | -9/Materials | Discovered new exit (range 13) 1150 | -9/Materials | Discovered new exit (range 10) 1158 | -9/Materials | Identified exit to Materials 1159 | -9/Materials | Entered another Materials area 1159 | -8/Materials | Evolved 2 slots: Propulsion x1, Utility x1 1787 | -8/Materials | Lost 4 parts (1p1n2u) 1838 | -8/Materials | Discovered new exit (range 12) 2022 | -8/Materials | Repaired Carbon-fiber Leg 2082 | -8/Materials | Build established: Scavenger-Mutant 2237 | -8/Materials | Core integrity fell below 50% 2267 | -8/Materials | Discovered new exit (range 15) 2277 | -8/Materials | Lost 4 parts (1p1n1u1w) 2515 | -8/Materials | Core integrity fell below 20% 2530 | -8/Materials | Build established: Mutant 2545 | -8/Materials | Destroyed by H-61 Shepherd with Heavy Assault Cannon Last Messages --------------- U-05 Engineer lays Concrete. U-05 Engineer builds a Wall. H-61 Shepherd calls for reinforcements. ALERT: Hostile activity reported, dispatching reinforcements to area. Penetrated by Slug. Deuterium Engine destroyed. Titanium Leg destroyed. Sml. Storage Unit destroyed. Knocked back. K-01 Serf collects debris. Imp. Aluminum Leg destroyed. Hvy. Particle Cannon destroyed. U-05 Engineer lays Concrete. K-01 Serf collects debris. U-05 Engineer lays Concrete. Penetrated by Slug. U-05 Engineer builds a Wall. K-01 Serf collects debris. Hvy. Particle Cannon destroyed. Map ----- +----------------------------------------------------+ | ?????????????????????????????????????????????? | | ?????????????????????????????????????????????? | | ?????????????????????????????????????????????? | | ?????????????????????????????????????????????? | | ?????????????????????????????????????????????? | | ?????????????????????????????????????????????? | | ?????????????????????????????????????????????? | | ?????????????????????????????????????????????? | | ?????????????????????????????????????????????? | | ?????????????????????????????????????????????? | | ?????????????????????????????????????????????? | | ?????????????????????????????????????????????? | | ?????????????????????????????????????????????? | | ????????????????????????????????#????????????? | | ??????????????????????????????? #????????????? | | ?????????????????????????????? #????????????? | | ?????????????????????????????? #????????????? | | ?????????????????????????????? #????????????? | | ????????????????????????????? #????????????? | | ?????????????????????????????gg #????????????? | | ?????????? #;#;############ #????????????? | | ??????a??? #??######????? | | ????????? # #???? | | ?a??????? H k % ; ????? | | ????????? % ; ????? | | ????????? @ # ????? | | ????????? [##########w#;%##m + ???????? | | ???????????????????##""";;;;# # ?????? | | ???????????????????# # # ? ????? | | ???????????????????# # #????? ?????? | | ???????????????????# #=| #????????????? | | ???????????????????# #*!!##########???? | | ???????????????????# %*# #???? | | ???????????????????# !=+ ! #???? | | ???????????????????# = # #???? | | ???????????????????#! # #???? | | ???????????????????# [ ; = # #???? | | ???????????????????##;#;;;k;; ^# #???? | | ??????????????????? #u ;; ^# [ /#???? | | ????????????????? ; ;; *^# #???? | | ???????????????? """ # ## # ! #???? | | ??????????????? """""# ?# ######+###???? | | ??????????????? ???""?# ?" #????# #?????? | | ??????????????????????# ?# #????# #?????? | | ??????????????????????# ?# #????# #?????? | | ??????????????????????# ?# #????# #?????? | | ????????????????###+### ?# #????# #?????? | | ????????????????# ###+#?# ###??#%#?????? | | ????????????????# ???? ?# ### #?????? | | ????????????????# ????? ??# # #?????? | +----------------------------------------------------+ Best States ------------- Heat Dissipation 31 Energy Generation 14 Energy Capacity 280 Matter Stores 300 Matter Capacity 300 Sight Range 16 Terrain Scan Density 10 Evasion (%) 63 Targeting Accuracy 8 Offensive Hacking 10 Item Schematics ----------------- None Robot Schematics ------------------ None Fabricated ------------ Nothing Alien Tech Used ----------------- None Achievements -------------- None Challenges ------------ None Game ------ Seed HellfireLegClaymores Manual? 0 Play Time 00:31:17 Cumulative 3.8 hours Start 2024.04.06 @ 21:30:47 End 2024.04.06 @ 21:59:38 Sessions 1 Manual Loads 0 Difficulty Rogue Special Mode None Game No. 14 Rogue 14 Adventurer 0 Explorer 0 Win Type - Total 0 Types 0/0/0/0/0/0/0/0/0 Lore% 4 Gallery% 11 Achievement% 12 Wizard Run 0 Options --------- Layout 1 ASCII 0 Keyboard 0 Movement Mouse Keybinds 0 Fullscreen 1 Font 24/Smallcaps Map View 50x35 Zoom Use 0% Tactical HUD 0 Map Filters NONE Filters NONE Steam 1 RUN: a11e202d-e3a0-487b-8b68-af3c57a7d832